Cogmind - Beta 14 @@@ ROGUE MODE // 2024.08.07 @ 18:39:49 Player: Some Pennies Result: Destroyed by exploding Fusion Modulator Performance ------------- Evolutions (3) 1500 Regions Visited (4) 800 Robots Destroyed (119) 595 Value Destroyed (3327) 3327 Prototype IDs (11) 220 Alien Tech Used (0) 0 Bonus (116) 116 TOTAL SCORE: 6558 Bonus ------- High Alert Combat Kills 116 Cogmind --------- Core Integrity 0/700 Matter 45/300 Energy 100/100 System Corruption 6% Temperature Cool (38) Movement Flying (35) Location -7/Factory Parts ------- > --- POWER (1) -------- (None) > --- PROPULSION (5) --- Improved VTOL Module > --- UTILITY (5) ------ ECM Suite Hacking Suite Hacking Suite > --- WEAPON (2) ------- Impact Mace > --- INVENTORY (5) ---- Medium Storage Unit Improved Sensor Array 8R-AWN's Boregun Multitool Peak State ------------ > --- POWER ------------ Light Nuclear Core > --- PROPULSION ------- Improved Flight Unit Improved Flight Unit Improved Flight Unit Improved Flight Unit Improved VTOL Module > --- UTILITY ---------- Machine Analyzer Improved Sensor Array Hacking Suite Hacking Suite Hacking Suite > --- WEAPON ----------- High-powered Field Laser Impact Mace > --- INVENTORY -------- Cooled VTOL Module 8R-AWN's Boregun Improved Grenade Launcher Multitool [Rating: 46] Favorites ----------- Power Light Nuclear Core Engine Subdweller Power Source Power Core Light Nuclear Core Propulsion Light Treads Treads Light Treads Leg Aluminum Leg Wheel Wheel Flight Unit Improved Flight Unit Utility Huge Storage Unit Device Improved Heat Sink Storage Huge Storage Unit Processor Advanced Targeting Computer Hackware Hacking Suite Protection Light Armor Plating Weapon Subdweller Beam Cannon Energy Gun Field Laser Energy Cannon Subdweller Beam Cannon Ballistic Gun Assault Rifle Ballistic Cannon Battle Cannon Launcher Improved Grenade Launcher Special Weapon Mining Laser Impact Weapon Impact Mace Special Melee Weapon Datajack Build | -11 -10 -10 -8 -7 ------- Run | Yrd Mat Sub Mat Fac Slots Evolved 6 | . . . 4 2 Power . | . . . . . Propulsion 3 | . . . 2 1 Utility 3 | . . . 2 1 Weapon . | . . . . . Parts Attached 150 | 11 11 21 63 44 Power 19 | 2 2 4 8 3 Engine 7 | 2 . 3 2 . Core 12 | . 2 1 6 3 Reactor . | . . . . . Propulsion 37 | 3 . 3 24 7 Treads 25 | 2 . 3 20 . Leg 2 | . . . 2 . Wheel 1 | 1 . . . . Hover . | . . . . . Flight 9 | . . . 2 7 Utility 35 | 3 4 4 14 10 Device 14 | 2 . 2 6 4 Storage 5 | 1 2 . 1 1 Processor 3 | . . . 2 1 Hackware 3 | . . . . 3 Protection 10 | . 2 2 5 1 Artifact . | . . . . . Weapon 59 | 3 5 10 17 24 Energy Gun 8 | 2 1 1 3 1 Energy Cannon 12 | . 1 5 6 . Ballistic Gun 5 | 1 3 . . 1 Ballistic Cannon 3 | . . . 3 . Launcher 5 | . . . 3 2 Special Weapon 9 | . . 4 . 5 Impact Weapon 13 | . . . 2 11 Slashing Weapon . | . . . . . Piercing Weapon . | . . . . . Special Melee Weapon 4 | . . . . 4 Unidentified Prototypes 6 | . 1 . 2 3 Parts Lost 29 | . 2 5 16 6 Power 5 | . 1 1 3 . Propulsion 14 | . . 3 7 4 Utility 6 | . 1 1 3 1 Weapon 4 | . . . 3 1 Highest Loss Streak 5 | . 1 2 5 3 To Critical Strikes 1 | . . . 1 . Average Slot Usage (%) 98 | . 99 99 95 95 Engine 4 | . 5 6 1 . Core 7 | . 8 7 6 6 Treads 27 | . 28 27 34 . Flight 3 | . . . . 35 Device 6 | . 3 5 9 7 Storage 11 | . 14 14 9 1 Processor 2 | . . . 6 3 Hackware 2 | . . . . 22 Protection 8 | . 10 8 8 1 Energy Gun 2 | . 3 2 2 . Energy Cannon 14 | . 9 21 13 . Ballistic Gun 3 | . 14 2 . . Peak Build Rating 46 | 8 17 18 34 46 Average Rating 20 | 6 11 15 27 38 On Entrance 11 | . 8 13 18 20 Naked Turns . | . . . . . Heaviest Build 122 | 15 93 105 122 22 Greatest Support 80 | 40 40 40 80 25 Greatest Overweight (x) 2 | 1 2 2 2 1 Average Overweight (x) . | . 1 2 1 . Largest Inventory Capacity 25 | 8 25 25 25 25 Average Capacity 22 | 7 22 25 25 6 Most Carried 25 | 8 25 25 25 24 Average Carried 21 | 4 20 24 23 5 Final Capacity 25 | 8 25 25 25 5 Final Carried 25 | 8 25 25 25 4 Class Distribution -------------------- 70% | Mutant 17% | Scavenger-Mutant 7% | Hacker-Sprinter 3% | Subdweller-Mutant Dominant Class ---------------- Mutant | -10/Materials Mutant | -10/Subcaves Scavenger-Mutant | -8/Materials Hacker-Sprinter | -7/Factory Resources | -11 -10 -10 -8 -7 ----------- Run | Yrd Mat Sub Mat Fac Matter Collected 2094 | 340 312 250 841 351 Remotely 139 | 139 . . . . Salvage Created 4470 | 162 838 523 2390 557 Parts 246 | 15 48 36 119 28 Haulers Intercepted 7 | . 1 . 4 2 Recyclers Shooed 5 | . 1 . 2 2 Parts Field Recycled . | . . . . . Retrieved Matter . | . . . . . Parts Self-Destructed 11 | . . 11 . . Prevented . | . . . . . Kills | -11 -10 -10 -8 -7 ------- Run | Yrd Mat Sub Mat Fac Combat Hostiles Destroyed 78 | . 16 14 41 7 Guns 18 | . 10 4 4 . Cannons 38 | . 5 10 23 . AOE 16 | . . . 9 7 Classes Destroyed 17 | 2 6 3 5 1 Worker 6 | . 4 . 1 1 Builder 5 | . . . 4 1 Tunneler 5 | 4 . . . 1 Hauler 7 | . 1 . 4 2 Recycler 7 | 1 1 . 2 3 Operator 5 | . 2 . 2 1 Watcher 9 | . 1 . 4 4 Swarmer 16 | . 4 4 3 5 Grunt 37 | . 12 . 25 . Brawler 2 | . . . 2 . Duelist 2 | . . . 2 . Protector 1 | . . . 1 . Sentry 7 | . . 1 6 . Specialist 2 | . . . 2 . Programmer 2 | . . . . 2 Artisan 1 | . . 1 . . Subdweller 9 | . . 9 . . Best Kill Streak 8 | 3 3 2 7 8 Combat Bots Only 6 | . 3 2 6 5 Max Kills in Single Turn 5 | 1 1 2 2 5 Gunslinging 1 | . . 1 . . Exploded 3 | . . . 2 3 Melee . | . . . . . Uniques/NPCs Destroyed . | . . . . . Combat | -11 -10 -10 -8 -7 -------- Run | Yrd Mat Sub Mat Fac Hostile Shots Fired 536 | . 79 86 273 98 Missed 174 | . 19 27 79 49 Damage Taken 6496 | . 634 944 3686 1232 Core 1357 | . 84 124 431 718 Absorbed by Shields . | . . . . . Regen/Repaired (Parts) 95 | . 77 . 18 . Core Remaining (%) 45 | 100 . 16 21 . Volleys Fired 359 | 10 68 120 147 14 Largest 2 | 2 2 2 2 2 Hottest 160 | 70 80 160 160 64 Shots Fired 604 | 20 136 160 272 16 Gun 190 | 20 98 24 40 8 Cannon 338 | . 38 83 217 . Launcher 23 | . . . 15 8 Special 53 | . . 53 . . Kinetic 135 | 10 76 15 26 8 Thermal 446 | 10 60 145 231 . Explosive 15 | . . . 7 8 Electromagnetic 8 | . . . 8 . Robot Hit Streak 13 | 3 12 9 13 12 Robot Miss Streak 8 | 2 5 3 8 1 Penetration Max . | . . . . . Secondary Targets 1 | . . 1 . . Max Gunslinging Chain 1 | . . 1 . . Shots Hit Robots 322 | 11 84 42 164 21 Core Hits 152 | 6 35 16 81 14 Critical Kills 4 | . . . 2 2 Critical Parts Destroyed 4 | . . . . 4 Critical Strikes 13 | 2 3 . 2 6 Burn 5 | 2 3 . . . Meltdown 2 | . . . 2 . Smash 6 | . . . . 6 Melee Attacks 26 | . . . 3 23 Impact 25 | . . . 3 22 Slashing . | . . . . . Piercing . | . . . . . Sneak Attacks 6 | . . . . 6 Combat Hostiles . | . . . . . Follow-up Attacks . | . . . . . Damage Inflicted 9452 | 160 1207 1049 5301 1735 Guns 1791 | 160 791 170 498 172 Cannons 4703 | . 416 879 3408 . Explosions 1935 | . . . 1391 544 Melee 1019 | . . . . 1019 Ramming 4 | . . . 4 . Kinetic 1177 | 75 591 82 257 172 Thermal 5317 | 85 616 967 3649 . Explosive 1307 | . . . 763 544 Electromagnetic 628 | . . . 628 . Impact 1019 | . . . . 1019 Slashing . | . . . . . Piercing . | . . . . . Highest Corruption 6 | . . . 3 6 Average Corruption 2 | . . . 2 2 Corruption Purged 4 | . . . . 4 Corruption Blocked . | . . . . . Effects 11 | . . . 8 3 Message Errors 2 | . . . 1 1 Matter Fused 4 | . . . 3 1 Heat Flow Errors 2 | . . . 1 1 Energy Discharges 1 | . . . 1 . Data Loss (minor) 1 | . . . 1 . Alerts 1 | . . . 1 . Overload Shots . | . . . . . Overflow Damage 675 | . 10 . 78 587 Projectiles 88 | . 10 . 78 . Explosions 4 | . . . . 4 Melee 583 | . . . . 583 Knockbacks 6 | . . . 3 3 Impact 3 | . . . . 3 Kinetic 3 | . . . 3 . Secondary . | . . . . . Self-Inflicted Damage 374 | . . . 254 120 Shots 15 | . . . 11 4 Rammed 2 | . . . 2 . Targets Rammed 2 | . . . 2 . Kicked . | . . . . . Crushed . | . . . . . Highest Temperature 429 | 27 222 270 429 274 Average Temperature 86 | 12 59 76 107 89 Received Heat Transfer 1833 | . 291 162 1359 21 Effects 6 | . . . 5 1 Shutdowns 1 | . . . 1 . Energy Bleed 1 | . . . . 1 Interference 1 | . . . 1 . Damage (major) 3 | . . . 3 . Siege Activations . | . . . . . Robots Corrupted 8 | . . . 2 6 Combat Hostiles 2 | . . . 2 . Parts Fried 20 | . . . 5 15 Impact Corruptions 14 | . . . . 14 Robots Melted 4 | . 1 . 3 . Combat Hostiles 4 | . 1 . 3 . Parts Melted 12 | 1 3 3 5 . Heat Transferred 9017 | 407 1665 1321 5624 . Parts Sabotaged . | . . . . . Parts Stolen . | . . . . . Parts Stripped . | . . . . . Power Chain Reactions . | . . . . . Alert | -11 -10 -10 -8 -7 ------- Run | Yrd Mat Sub Mat Fac Peak Influence 681 | 25 257 . 681 588 Initial 270 | . 16 . 10 270 Average 243 | 15 123 . 305 339 Maximum Alert Level 2 | . 1 . 2 2 Low Security (%) 43 | 100 91 . 21 3 Level 1 41 | . 8 . 56 70 Level 2 14 | . . . 22 26 Level 3 . | . . . . . Level 4 . | . . . . . Level 5 . | . . . . . High Security . | . . . . . Max Security . | . . . . . Squads Dispatched 20 | . 4 . 9 7 Investigation 11 | . 2 . 4 5 Extermination 1 | . . . . 1 Reinforcement 6 | . 2 . 3 1 Assault 2 | . . . 2 . Garrison . | . . . . . Intercept . | . . . . . Searches Triggered 1 | . . . . 1 Construction Impeded . | . . . . . Haulers Reinforced . | . . . . . Active Scanning Responses . | . . . . . Cargo Convoy Interrupts 1 | . . . . 1 Stealth | -11 -10 -10 -8 -7 --------- Run | Yrd Mat Sub Mat Fac Distress Signals 8 | . 1 . 5 2 Communications Jammed . | . . . . . Distress Signals . | . . . . . Times Spotted 159 | . 28 17 62 52 Peak Tracking Total 13 | . 5 4 8 13 Tactical Retreats 22 | . 3 2 4 13 Traps | -11 -10 -10 -8 -7 ------- Run | Yrd Mat Sub Mat Fac Traps Triggered 6 | . 1 1 1 3 Indirectly . | . . . . . Trap Hack Attempts . | . . . . . Triggered . | . . . . . Disarmed . | . . . . . Reprogrammed . | . . . . . Reused . | . . . . . Traps Extracted . | . . . . . Installed 1 | . . 1 . . Triggered . | . . . . . Machines | -11 -10 -10 -8 -7 ---------- Run | Yrd Mat Sub Mat Fac Machines Disabled 9 | . . . 4 5 Max in Single Turn 1 | . . . 1 1 Garrison Access 2 | . . . . 2 Machines Repaired . | . . . . . Machines Dismantled . | . . . . . Machines Sabotaged . | . . . . . Overloaded Fab Kills . | . . . . . Hacking | -11 -10 -10 -8 -7 --------- Run | Yrd Mat Sub Mat Fac Machines Accessed 37 | . 6 . 8 23 Terminals 22 | . 3 . 5 14 Fabricators 4 | . . . . 4 Repair Stations 2 | . 1 . 1 . Recycling Units 5 | . 2 . 1 2 Scanalyzers 1 | . . . . 1 Garrison Access 3 | . . . 1 2 Total Hacks 102 | . 16 . 16 70 Successful 70 | . 9 . 10 51 Failed 32 | . 7 . 6 19 Catastrophic 5 | . 1 . 3 1 Database Lockouts . | . . . . . Manual 47 | . 4 . 4 39 Terminals 65 | . 7 . 8 50 Fabricators 11 | . . . . 11 Repair Stations 7 | . 4 . 3 . Recycling Units 11 | . 5 . 2 4 Scanalyzers 2 | . . . . 2 Garrison Access 6 | . . . 3 3 Terminal Hacks 32 | . 4 . 6 22 Part Schematic 4 | . . . 1 3 Robot Analysis 4 | . 3 . . 1 Prototype ID Bank 3 | . . . 2 1 Level Access Points 1 | . . . . 1 Branch Access Points 1 | . . . . 1 Machine Index 1 | . . . . 1 Terminal Index 1 | . . . . 1 Alert Level 1 | . . . . 1 Unreport Threat 2 | . . . 1 1 Locate Traps 3 | . . . 1 2 Recall Investigation 2 | . . . . 2 Recall Extermination 2 | . . . . 2 Hauler Manifests 3 | . 1 . 1 1 Registered Components 1 | . . . . 1 Registered Prototypes 1 | . . . . 1 Zone Layout 2 | . . . . 2 Fabricator Hacks 6 | . . . . 6 Network Status 1 | . . . . 1 Load Schematic 3 | . . . . 3 Build 2 | . . . . 2 Repair Station Hacks 5 | . 3 . 2 . Scan Component 3 | . 2 . 1 . Repair 2 | . 1 . 1 . Recycling Unit Hacks 4 | . 1 . 1 2 Retrieve Components 4 | . 1 . 1 2 Scanalyzer 2 | . . . . 2 Insert Component 1 | . . . . 1 Analyze 1 | . . . . 1 Garrison Access Hacks 2 | . . . . 2 Seal Access 2 | . . . . 2 Unauthorized Hacks 19 | . 1 . 1 17 Terminals 15 | . . . . 15 Track 1 | . . . . 1 Assimilate 4 | . . . . 4 Botnet 5 | . . . . 5 Operators 1 | . . . . 1 Skim 4 | . . . . 4 Fabricators 1 | . . . . 1 Prioritize 1 | . . . . 1 Repair Stations . | . . . . . Recycling Units 3 | . 1 . 1 1 Mask 1 | . . . . 1 Tunnel 2 | . 1 . 1 . Scanalyzers . | . . . . . Garrison Access . | . . . . . Data Cores Recovered . | . . . . . Used . | . . . . . Hacking Detections 30 | . 6 . 7 17 Full Trace Events 8 | . 1 . 2 5 Feedback Events 1 | . . . . 1 Corruption 1 | . . . . 1 Feedback Blocked . | . . . . . Robot Schematics Acquired . | . . . . . Robots Built . | . . . . . Authchips . | . . . . . Time . | . . . . . Total Robot Build Rating . | . . . . . Part Schematics Acquired 5 | . . . 1 4 Parts Built 2 | . . . . 2 Authchips . | . . . . . Time 92 | . . . . 92 Total Part Build Rating 2 | . . . . 2 Parts Repaired 2 | . 1 . 1 . Time 70 | . 26 . 44 . Parts Recycled . | . . . . . Recycled Matter . | . . . . . Retrieved Matter . | . . . . . Retrieved Components 17 | . 10 . . 7 Parts Scanalyzed 1 | . . . . 1 Part Schematics Acquired 1 | . . . . 1 Parts Damaged . | . . . . . Bothacking | -11 -10 -10 -8 -7 ------------ Run | Yrd Mat Sub Mat Fac Used RIF Installer . | . . . . . Robots Hacked 1 | . . . . 1 Non-combat 1 | . . . . 1 Combat . | . . . . . Robot Hacks Applied 1 | . . . . 1 find_recycling 1 | . . . . 1 Relay Couplers Released . | . . . . . Fabnet Peak Effective % . | . . . . . Robots Rewired . | . . . . . Allies Hacked . | . . . . . Hacks Repelled . | . . . . . Allies | -11 -10 -10 -8 -7 -------- Run | Yrd Mat Sub Mat Fac Total Allies 3 | . . . . 3 Largest Group 2 | . . . . 2 Highest-Rated Group 20 | . . . . 20 Highest-Rated Ally 10 | . . . . 10 Total Orders . | . . . . . Ally Attacks . | . . . . . Total Damage . | . . . . . Kills . | . . . . . Allies Corrupted . | . . . . . Allies Melted . | . . . . . Intel | -11 -10 -10 -8 -7 ------- Run | Yrd Mat Sub Mat Fac Robot Analysis Total 4 | . 3 . . 1 Derelict Logs Recovered 1 | . . 1 . . Drone Launches . | . . . . . Drone Recoveries . | . . . . . Exploration | -11 -10 -10 -8 -7 ------------- Run | Yrd Mat Sub Mat Fac Turns Passed 9906 | 185 1860 4093 2884 884 Spaces Moved 4959 | 128 613 1139 889 2190 Core 1 | 1 . . . . Treads 2660 | 19 613 1139 889 . Legs . | . . . . . Wheels 108 | 108 . . . . Hover . | . . . . . Flight 2190 | . . . . 2190 Fastest Speed 27 | 50 160 320 240 27 Average Speed 164 | 102 254 320 244 29 Slowest Speed 325 | 160 320 320 325 102 Overloaded Moves . | . . . . . Propulsion Burnouts . | . . . . . Robots Hopped 3 | . . . . 3 Cave-ins Triggered . | . . . . . Exploration Rate (%) 56 | 5 95 58 58 65 Regions Visited 4 Branch Regions 1 Pre-discovered Areas 2 | . 1 . 1 . Known Exits Taken 1 | . . . 1 . Unknown Exits Taken 3 | 1 1 1 . . Scrap Searched 3 | . . 3 . . Spaces Dug 59 | . . 47 3 9 Terrain Destroyed 184 | . . 67 92 25 Melee 12 | . . . 3 9 Projectile 107 | . . 67 40 . AOE 65 | . . . 49 16 Terrain Rammed . | . . . . . Walls Destroyed . | . . . . . Machines Disabled . | . . . . . Actions | -11 -10 -10 -8 -7 --------- Run | Yrd Mat Sub Mat Fac Total 5954 | 157 783 1321 1320 2373 Wait 269 | . 58 20 140 51 Move 4949 | 127 612 1138 888 2184 Hop 3 | . . . . 3 Pick Up 87 | 8 24 10 36 9 Fast Attach 33 | 7 3 3 10 10 Attach 37 | . 2 5 13 17 Detach 8 | . 1 1 . 6 Swap 80 | 4 6 13 40 17 Drop 95 | 1 9 10 41 34 Fire 359 | 10 68 120 147 14 Melee 26 | . . . 3 23 Ram . | . . . . . Kick . | . . . . . Crush 2 | . . . 2 . Escape Stasis . | . . . . . Rewire . | . . . . . Trap 1 | . . 1 . . Miscellaneous 5 | . . . . 5 Route ------- -11/Scrapyard -10/Materials (discovered 5 exits: [*Mat x3] / [*Min] / [*Sub]) -10/Subcaves (discovered 3 exits: *Mat x2 / [*Rec]) -8/Materials -7/Factory (discovered 7 exits: *Fac x4 / Sto / *Low x2) History --------- Turn | Location | Event 15 | -11/Scrapyard | Discovered new exit (range 15) 186 | -11/Scrapyard | Entered Materials 317 | -10/Materials | Build established: Mutant 410 | -10/Materials | Discovered new exit (range 14) 568 | -10/Materials | Discovered new exit (range 6) 649 | -10/Materials | Found Prototype Ballistic Gun 649 | -10/Materials | Identified 8R-AWN's Boregun 962 | -10/Materials | Discovered new exit (range 16) 1286 | -10/Materials | Derelicts attacked the area 1520 | -10/Materials | Repaired Assault Rifle 1774 | -10/Materials | Discovered new exit (range 10) 1969 | -10/Materials | Discovered new exit (range 15) 2046 | -10/Materials | Entered Subcaves 2053 | -10/Subcaves | Learned 8 Materials zone layouts 2270 | -10/Subcaves | Ambushed by angry Subdweller bent on revenge 2601 | -10/Subcaves | Discovered new exit (range 12) 2709 | -10/Subcaves | Shifting Twisted Machinery released Shrapnel Trap 2723 | -10/Subcaves | Shifting Twisted Machinery released Sub. Beam Cannon 2977 | -10/Subcaves | Shifting Twisted Machinery released Sub. Beam Cannon 3018 | -10/Subcaves | Shifting Twisted Machinery released Flamer 3405 | -10/Subcaves | Discovered new exit (range 9) 4160 | -10/Subcaves | Core integrity fell below 50% 4981 | -10/Subcaves | Disturbed a concealed Subdweller 5883 | -10/Subcaves | Discovered new exit (range 11) 6027 | -10/Subcaves | A swath of the cavern ceiling suddenly collapsed 6092 | -10/Subcaves | Core integrity fell below 20% 6139 | -10/Subcaves | Entered Materials 6139 | -8/Materials | Evolved 4 slots: Propulsion x2, Utility x2 6140 | -8/Materials | Identified exit to Factory 6212 | -8/Materials | Repaired Broken Sub. Beam Cannon 6601 | -8/Materials | Lost 4 parts (1p2n1w) 7594 | -8/Materials | Build established: Scavenger-Mutant 8539 | -8/Materials | First assault squad dispatched 8591 | -8/Materials | Core integrity fell below 50% 9023 | -8/Materials | Entered Factory 9023 | -7/Factory | Evolved 2 slots: Propulsion x1, Utility x1 9047 | -7/Factory | Lost 5 parts (1p2n1u1w) 9160 | -7/Factory | Identified exit to Factory 9334 | -7/Factory | Build established: Hacker-Sprinter 9350 | -7/Factory | Discovered new exit (range 4) 9489 | -7/Factory | Fabricated ECM Suite (x2) 9656 | -7/Factory | Identified exit to Storage 9656 | -7/Factory | Identified exit to Lower Caves 9753 | -7/Factory | Cargo convoy interrupted 9823 | -7/Factory | Search patrols dispatched 9831 | -7/Factory | Lost 3 parts (2n1w) 9889 | -7/Factory | Core integrity fell below 50% 9907 | -7/Factory | Destroyed by exploding Fusion Modulator Last Messages --------------- 09868_ ALERT: Unauthorized use of fabrication network. Dispatching investigation squad. 09872_ Imp. Flight Unit destroyed. 09874_ Identified Prc. Assault Rifle. 09874_ Imp. Flight Unit destroyed. 09880_ Hacking Suite destroyed. 09883_ System corrupted: Matter fused (-10). 09888_ P-60 Hacker destroyed. 09888_ Destroyed Shock Rifle. 09891_ P-60 Hacker destroyed. 09891_ Fabricator disabled. 09895_ Dropped Imp. Grenade Launcher. 09896_ The unstable cave ceiling collapses. 09896_ Dropped Prc. Assault Rifle. 09896_ Dropped Mic. Nuclear Core. 09897_ Dropped Lgt. Nuclear Core. 09899_ Acquired 23 matter. 09907_ Triggered Heavy Explosive Trap. 09907_ An explosion rips through the floor. 09907_ Fusion Modulator explodes. Map ----- +----------------------------------------------------+ | ??????????????? # " ^ | | ??????????????""" """ ?# = | | ??????????????""" """ # * """""" """"""" | | ??????????????""" """ # [ """"" " """"" | | ???????????# "" " """""" | | ?????????????????####### """ """"""" | | ???????????????????????# *= | | ???????????????? # [ [% | | ????????????????! """ # %# ######### | | ???????????????# "R" # = *# ! # | | ???????????????# " " # "" + # | | ????????????????? ?# Y" # # | | ??????????????????? "?" + "% """ # """ """ # | | ?????????????????? """ # # """ """ # | | ?????????????????? ??"" # # """ """ # | | ????????????????? ??? # # | | ??????????????########; ; ;#;# # """ """ | | ??????????????# / + # """ """ | | ??????????????# # # """ """ | | ??????????????# # # | | ??????????????# !# ########## | | ??????????????#! # #????####### | | ??????????????# ; #????# = | | ??????????????# ; #????# | | ??????????????# ; #????# """" | | ??????????????# @ ; #????# """" | | ??????????????###;;; ;# #????# """" | | ????????????????## ;## ###?## """" | | ?????????????????### # ### # | | ??????????########?#?#### | | | ?????????? ???# | ** * # | | ?????????# ???# []! ## | | ?????????# ??# """ """ """ """ """ "" | | ?????????# ??# """ """ """ """ ""F" "" | | ?????????# ?# """ """ """ """ "" F | | ?????????# ?# "" | | ?????????# # """ """ """ """ """ "" | | ?????????# # """ """ """ """ """ ## | | ?????????# + """ """ """ """ """ | | ?????????# # ## | | ?????????# # #? | | ?????????# ?+ #? | | ?????????############?###+############ #? | | ?????????????????????????????????????# #? | | ?????????????????????????????????????# #? | | ?????????????????????????????????????#######+####? | | ?????????????????????????????????????????????????? | | ?????????????????????????????????????????????????? | | ?????????????????????????????????????????????????? | | ?????????????????????????????????????????????????? | +----------------------------------------------------+ Best States ------------- Heat Dissipation 59 Energy Generation 15 Energy Capacity 265 Matter Stores 300 Matter Capacity 300 Sight Range 18 Robot Scan Range 15 Terrain Scan Density 10 ECM Strength 1 Armor Coverage 800 Evasion (%) 64 Targeting Accuracy 8 Recoil Reduction 4 Offensive Hacking 30 Item Schematics ----------------- ECM Suite | -8/Materials | Hacked Adv. Cooling System | -7/Factory | Hacked Arm. Medium Treads | -7/Factory | Hacked Imp. System Shield | -7/Factory | Hacked Cld. VTOL Module | -7/Factory | Scanalyzed Robot Schematics ------------------ None Fabricated ------------ ECM Suite | x2 | -7/Factory Alien Tech Used ----------------- None Achievements -------------- None Challenges ------------ None Game ------ Seed GravmagKineticCanceller Manual? 0 Play Time 01:19:45 Cumulative 212.7 hours Start 2024.08.07 @ 17:12:08 End 2024.08.07 @ 18:39:49 Sessions 1 Manual Loads 0 Difficulty Rogue Special Mode None Game No. 180 Rogue 175 Adventurer 5 Explorer 0 Win Type - Total 4 Types 2/0/2/0/0/0/0/0/0 Lore% 43 Gallery% 75 Achievement% 60 Wizard Run 0 Options --------- Layout 2 ASCII 0 Keyboard 0 Movement Mouse Keybinds 0 Fullscreen 2 Font 24/Smallcaps Map View 50x44 Zoom Use 0% Tactical HUD 1 Map Filters NONE Filters NONE Steam 1 RUN: f09674d1-13a5-4191-a507-68415ec25a0b